fUST/lending_fUST_20240218
["ID","MTS","AMOUNT","RATE_DAILY","PERIOD"]
[314345231,1708207842734,-1019.35,0.00029041,2]
[314345232,1708207842744,-500.0,0.00029041,2]
[314345233,1708207842753,-593.35,0.00029041,2]
[314345234,1708207842764,-557.34,0.00029041,2]
[314345235,1708207842773,-656.43,0.00029041,2]
[314345236,1708207842783,-500.0,0.00029041,2]
[314345237,1708207842792,-841.0,0.00029041,2]
[314345238,1708207842801,-173.634003,0.00029072,2]
[314345239,1708207842810,-184.018939,0.00029072,2]
[314345240,1708207842819,-300.0,0.00029243,2]
[314345241,1708207842828,-620.0693369,0.00029287,2]
[314345242,1708207842837,-1786.56049038,0.000293,2]
[314345243,1708207842847,-500.0,0.00029315,2]
[314345244,1708207842856,-849.74,0.00029315,2]
[314345245,1708207842865,-382.04,0.00029315,2]
[314345246,1708207842874,-809.39,0.00029315,2]
[314345247,1708207842883,-500.0,0.00029315,2]
[314345248,1708207842892,-512.52,0.00029315,2]
[314345249,1708207842902,-444.72726313,0.00029315,2]
[314345250,1708207842911,-3100.22,0.00029315,2]
[314345251,1708207842919,-1099.02,0.00029315,2]
[314345252,1708207842930,-4380.24,0.00029315,2]
[314345253,1708207842939,-4876.39,0.00029315,2]
[314345254,1708207842948,-500.0,0.00029315,2]
[314345255,1708207842957,-3135.63,0.00029315,2]
[314345256,1708207842967,-500.0,0.00029315,2]
[314345257,1708207842976,-500.0,0.00029315,2]
[314345258,1708207842985,-546.42,0.00029315,2]
[314345259,1708207842994,-1047.16,0.00029315,2]
[314345260,1708207843003,-1289.77,0.00029315,2]
[314345261,1708207843012,-500.0,0.00029315,2]
[314345262,1708207843021,-500.0,0.00029315,2]
[314345263,1708207843030,-3328.4,0.00029315,2]
[314345264,1708207843042,-3479.64,0.00029315,2]
[314345265,1708207843050,-998.43,0.00029315,2]
[314345266,1708207843059,-5443.88,0.00029315,2]
[314345267,1708207843068,-516.6,0.00029315,2]
[314345268,1708207843077,-500.45,0.00029315,2]
[314345269,1708207843085,-595.36,0.00029315,2]
[314345270,1708207843094,-1019.35,0.00029315,2]
[314345271,1708207843103,-500.0,0.00029315,2]
[314345272,1708207843112,-593.35,0.00029315,2]
[314345273,1708207843121,-557.34,0.00029315,2]
[314345274,1708207843130,-656.43,0.00029315,2]
[314345275,1708207843139,-500.0,0.00029315,2]
[314345276,1708207843149,-161.725876,0.00029541,2]
[314345277,1708207843162,-159.773238,0.00029541,2]
[314345278,1708207843171,-173.634003,0.00029541,2]
[314345279,1708207843180,-184.018939,0.00029541,2]
[314345280,1708207843190,-1331.40785592,0.00029576,2]
[314345281,1708207843199,-500.0,0.00029589,2]
[314345282,1708207843208,-849.74,0.00029589,2]
[314345283,1708207843218,-809.39,0.00029589,2]
[314345284,1708207843227,-500.0,0.00029589,2]
[314345285,1708207843238,-512.52,0.00029589,2]
[314345286,1708207843247,-3100.22,0.00029589,2]
[314345287,1708207843256,-1099.02,0.00029589,2]
[314345288,1708207843265,-4380.24,0.00029589,2]
[314345289,1708207843275,-4876.39,0.00029589,2]
[314345290,1708207843285,-500.0,0.00029589,2]
[314345291,1708207843294,-3135.63,0.00029589,2]
[314345292,1708207843303,-500.0,0.00029589,2]
[314345293,1708207843312,-500.0,0.00029589,2]
[314345294,1708207843321,-546.42,0.00029589,2]
[314345295,1708207843330,-1047.16,0.00029589,2]
[314345296,1708207843340,-1289.77,0.00029589,2]
[314345297,1708207843349,-500.0,0.00029589,2]
[314345298,1708207843358,-437.865938,0.00029589,2]
[314345299,1708207843367,-3328.4,0.00029589,2]
[314345300,1708207843376,-3479.64,0.00029589,2]
[314345301,1708207843385,-998.43,0.00029589,2]
[314345302,1708207843394,-5443.88,0.00029589,2]
[314345303,1708207843403,-516.6,0.00029589,2]
[314345304,1708207843412,-500.45,0.00029589,2]
[314345305,1708207843421,-595.36,0.00029589,2]
[314345306,1708207843430,-1019.35,0.00029589,2]
[314345307,1708207843439,-224.5,0.00029589,2]
[314345308,1708207843448,-593.35,0.00029589,2]
[314345309,1708207843456,-557.34,0.00029589,2]
[314345310,1708207843465,-656.43,0.00029589,2]
[314345311,1708207843475,-500.0,0.00029589,2]
[314345312,1708207843483,-300.0,0.00029618,2]
[314345313,1708207843493,-500.0,0.00029863,2]
[314345314,1708207843502,-849.74,0.00029863,2]
[314345315,1708207843510,-809.39,0.00029863,2]
[314345316,1708207843519,-500.0,0.00029863,2]
[314345317,1708207843528,-512.52,0.00029863,2]
[314345318,1708207843538,-3100.22,0.00029863,2]
[314345319,1708207843546,-1099.02,0.00029863,2]
[314345320,1708207843555,-4380.24,0.00029863,2]
[314345321,1708207843564,-4876.39,0.00029863,2]
[314345322,1708207843573,-500.0,0.00029863,2]
[314345323,1708207843582,-3135.63,0.00029863,2]
[314345324,1708207843591,-500.0,0.00029863,2]
[314345325,1708207843600,-500.0,0.00029863,2]
[314345326,1708207843609,-546.42,0.00029863,2]
[314345327,1708207843618,-1047.16,0.00029863,2]
[314345328,1708207843627,-1289.77,0.00029863,2]
[314345329,1708207843636,-500.0,0.00029863,2]
[314345330,1708207843645,-1758.07003315,0.00029863,2]
[314345331,1708207843893,-1771.51,0.00027387,3]
[314345332,1708207843902,-5.09343592,0.00027945,2]
[314345333,1708207843913,-297.36586592,0.00027945,2]
[314345334,1708207843978,-500.0,0.00027397,2]
[314345335,1708207843988,-197.54069816,0.00027945,2]
[314345336,1708207843997,-500.0,0.00028219,2]
[314345337,1708207844006,-512.83,0.00028493,2]
[314345338,1708207844015,-841.0,0.00029315,2]
[314345339,1708207844024,-841.0,0.00029589,2]
[314345340,1708207844034,-1570.32996685,0.00029863,2]
[314345341,1708207844043,-3479.64,0.00029863,2]
[314345342,1708207844052,-998.43,0.00029863,2]
[314345343,1708207844061,-5443.88,0.00029863,2]
[314345344,1708207844070,-516.6,0.00029863,2]
[314345345,1708207844079,-500.45,0.00029863,2]
[314345346,1708207844089,-595.36,0.00029863,2]
[314345347,1708207844098,-1019.35,0.00029863,2]
[314345348,1708207844107,-593.35,0.00029863,2]
[314345349,1708207844117,-557.34,0.00029863,2]
[314345350,1708207844126,-656.43,0.00029863,2]
[314345351,1708207844135,-500.0,0.00029863,2]
[314345352,1708207844143,-841.0,0.00029863,2]
[314345353,1708207844157,-152.1625319,0.000299,2]
[314345354,1708207844165,-58211.57842157,0.000299,2]
[314345355,1708207844174,-300.0,0.00029994,2]
[314345356,1708207844183,-709.44835875,0.0003,2]
[314345357,1708207844193,-295.04399365,0.0003,10]
[314345358,1708207844202,-3858.4014668,0.0003,2]
[314345359,1708207844211,-239.0,0.0003,2]
[314345360,1708207844220,-500.0,0.00030136,2]
[314345361,1708207844229,-849.74,0.00030136,2]
[314345362,1708207844239,-809.39,0.00030136,2]
[314345363,1708207844249,-500.0,0.00030136,2]
[314345364,1708207844258,-512.52,0.00030136,2]
[314345365,1708207844267,-3100.22,0.00030136,2]
[314345366,1708207844277,-1099.02,0.00030136,2]
[314345367,1708207844286,-4380.24,0.00030136,2]
[314345368,1708207844295,-4876.39,0.00030136,2]
[314345369,1708207844304,-532.94,0.00030136,2]
[314345370,1708207844313,-3135.63,0.00030136,2]
[314345371,1708207844322,-500.0,0.00030136,2]
[314345372,1708207844332,-546.42,0.00030136,2]
[314345373,1708207844341,-1047.16,0.00030136,2]
[314345374,1708207844350,-1289.77,0.00030136,2]
[314345375,1708207844360,-500.0,0.00030136,2]
[314345376,1708207844369,-3328.4,0.00030136,2]
[314345377,1708207844380,-3479.64,0.00030136,2]
[314345378,1708207844389,-998.43,0.00030136,2]
[314345379,1708207844399,-5443.88,0.00030136,2]
[314345380,1708207844409,-516.6,0.00030136,2]
[314345381,1708207844418,-500.45,0.00030136,2]
[314345382,1708207844428,-595.36,0.00030136,2]
[314345383,1708207844438,-1019.35,0.00030136,2]
[314345384,1708207844448,-593.35,0.00030136,2]
[314345385,1708207844457,-557.34,0.00030136,2]
[314345386,1708207844466,-656.43,0.00030136,2]
[314345387,1708207844475,-500.0,0.00030136,2]
[314345388,1708207844485,-841.0,0.00030136,2]
[314345389,1708207844494,-155.0,0.00030137,2]
[314345390,1708207844503,-991.27010301,0.00030155,2]
[314345391,1708207844513,-300.0,0.00030369,2]
[314345392,1708207844522,-991.27010301,0.00030393,2]
[314345393,1708207844532,-500.0,0.0003041,2]
[314345394,1708207844542,-849.74,0.0003041,2]
[314345395,1708207844551,-809.39,0.0003041,2]
[314345396,1708207844562,-500.0,0.0003041,2]
[314345397,1708207844577,-512.52,0.0003041,2]
[314345398,1708207844591,-3100.22,0.0003041,2]
[314345399,1708207844604,-1099.02,0.0003041,2]
[314345400,1708207844615,-4380.24,0.0003041,2]
[314345401,1708207844626,-4876.39,0.0003041,2]
[314345402,1708207844639,-3135.63,0.0003041,2]
[314345403,1708207844651,-257.99257,0.0003041,2]
[314345404,1708207844664,-257.99257,0.0003041,2]
[314345405,1708207844678,-500.0,0.0003041,2]
[314345406,1708207844690,-546.42,0.0003041,2]
[314345407,1708207844702,-1047.16,0.0003041,2]
[314345408,1708207844713,-1289.77,0.0003041,2]
[314345409,1708207844725,-500.0,0.0003041,2]
[314345410,1708207844737,-3328.4,0.0003041,2]
[314345411,1708207844750,-3479.64,0.0003041,2]
[314345412,1708207844762,-998.43,0.0003041,2]
[314345413,1708207844775,-5443.88,0.0003041,2]
[314345414,1708207844788,-516.6,0.0003041,2]
[314345415,1708207844800,-500.45,0.0003041,2]
[314345416,1708207844810,-595.36,0.0003041,2]
[314345417,1708207844823,-1019.35,0.0003041,2]
[314345418,1708207844836,-593.35,0.0003041,2]
[314345419,1708207844849,-557.34,0.0003041,2]
[314345420,1708207844861,-656.43,0.0003041,2]
[314345421,1708207844873,-500.0,0.0003041,2]
[314345422,1708207844885,-841.0,0.0003041,2]
[314345423,1708207844897,-991.27010301,0.0003063,2]
[314345424,1708207844910,-500.0,0.00030683,2]
[314345425,1708207844923,-506.30831063,0.00030683,2]
[314345426,1708207844936,-500.0,0.00030683,2]
[314345427,1708207844950,-500.0,0.00030683,2]
[314345428,1708207844963,-500.0,0.00030683,2]
[314345429,1708207844973,-554.7492813,0.00030683,2]
[314345430,1708207844983,-253.75866901,0.00030683,2]
[314345431,1708207844993,-405.53960382,0.00030684,2]
[314345432,1708207845004,-849.74,0.00030684,2]
[314345433,1708207845017,-809.39,0.00030684,2]
[314345434,1708207845028,-500.0,0.00030684,2]
[314345435,1708207845039,-512.52,0.00030684,2]
[314345436,1708207845052,-634.030639,0.00030684,2]
[314345437,1708207845063,-3100.22,0.00030684,2]
[314345438,1708207845073,-1099.02,0.00030684,2]
[314345439,1708207845085,-4380.24,0.00030684,2]
[314345440,1708207845096,-4876.39,0.00030684,2]
[314345441,1708207845107,-3135.63,0.00030684,2]
[314345442,1708207845117,-500.0,0.00030684,2]
[314345443,1708207845128,-546.42,0.00030684,2]
[314345444,1708207845139,-1047.16,0.00030684,2]
[314345445,1708207845150,-1289.77,0.00030684,2]
[314345446,1708207845164,-500.0,0.00030684,2]
[314345447,1708207845175,-3328.4,0.00030684,2]
[314345448,1708207845186,-3479.64,0.00030684,2]
[314345449,1708207845197,-998.43,0.00030684,2]
[314345450,1708207845208,-5443.88,0.00030684,2]
[314345451,1708207845219,-516.6,0.00030684,2]
[314345452,1708207845230,-500.45,0.00030684,2]
[314345453,1708207845241,-595.36,0.00030684,2]
[314345454,1708207845252,-1019.35,0.00030684,2]
[314345455,1708207845263,-593.35,0.00030684,2]
[314345456,1708207845274,-557.34,0.00030684,2]
[314345457,1708207845286,-656.43,0.00030684,2]
[314345458,1708207845297,-500.0,0.00030684,2]
[314345460,1708207845308,-841.0,0.00030684,2]
[314345461,1708207845319,-391.278602,0.00030744,2]
[314345462,1708207845331,-991.27010301,0.00030868,2]
[314345463,1708207845342,-242.85,0.000309,4]
[314345464,1708207845351,-849.74,0.00030958,2]
[314345465,1708207845360,-809.39,0.00030958,2]
[314345466,1708207845369,-151.0,0.00030958,2]
[314345468,1708207845378,-500.0,0.00030958,2]
[314345469,1708207845386,-512.52,0.00030958,2]
[314345470,1708207845395,-3100.22,0.00030958,2]
[314345471,1708207845404,-1099.02,0.00030958,2]
[314345472,1708207845414,-4380.24,0.00030958,2]
[314345474,1708207845423,-4876.39,0.00030958,2]
[314345475,1708207845433,-3135.63,0.00030958,2]
[314345476,1708207845442,-500.0,0.00030958,2]
[314345477,1708207845451,-546.42,0.00030958,2]
[314345478,1708207845460,-1047.16,0.00030958,2]
[314345479,1708207845577,-1289.77,0.00030958,2]
[314345481,1708207845591,-500.0,0.00030958,2]
[314345482,1708207845601,-3328.4,0.00030958,2]
[314345483,1708207845610,-3479.64,0.00030958,2]
[314345484,1708207845620,-998.43,0.00030958,2]
[314345485,1708207845629,-5443.88,0.00030958,2]
[314345486,1708207845638,-516.6,0.00030958,2]
[314345487,1708207845647,-500.45,0.00030958,2]
[314345488,1708207845657,-595.36,0.00030958,2]
[314345489,1708207845666,-1019.35,0.00030958,2]
[314345490,1708207845676,-593.35,0.00030958,2]
[314345491,1708207845685,-557.34,0.00030958,2]
[314345492,1708207845695,-656.43,0.00030958,2]
[314345493,1708207845704,-500.0,0.00030958,2]
[314345494,1708207845713,-841.0,0.00030958,2]
[314345495,1708207845722,-184.6217684,0.00030959,2]
[314345496,1708207845731,-1836.78,0.00030993,2]
[314345497,1708207845740,-1836.78,0.00030993,2]
[314345498,1708207845749,-1836.78,0.00030993,2]
[314345499,1708207845759,-1836.78,0.00030993,2]
[314345500,1708207845768,-1836.78,0.00030993,2]
[314345501,1708207845777,-1836.78,0.00030993,2]
[314345502,1708207845787,-1836.78,0.00030993,2]
[314345503,1708207845796,-1836.78,0.00030993,2]
[314345504,1708207845806,-1836.78,0.00030993,2]
[314345505,1708207845815,-1836.78,0.00030993,2]
[314345506,1708207845825,-53827.76822236,0.00031,4]
[314345510,1708207845891,-12785.19302943,0.00031,4]
[314345512,1708207845900,-4118.62211195,0.00031,2]
[314345514,1708207846030,-502.87237546,0.00027397,2]
[314345515,1708207846040,-500.0,0.00027397,2]
[314345516,1708207846049,-500.0,0.00027671,2]
[314345517,1708207846058,-500.0,0.00027945,2]
[314345518,1708207846067,-500.0,0.00028219,2]
[314345519,1708207846076,-3139.97175773,0.00031,2]
[314345601,1708209032079,-286.39335264,0.00023653,2]
[314345602,1708209032088,-525.04145402,0.00023653,2]
[314345603,1708209032097,-154.98450155,0.00023654,2]
[314345604,1708209032106,-154.98450155,0.00023655,2]
[314345605,1708209032115,-169.725628,0.00023665,2]
[314345606,1708209032124,-1282.3333354,0.00024347,2]
[314345607,1708209032133,-198.691605,0.00024777,2]
[314345608,1708209032142,-21104.92723368,0.00025142,2]
[314345609,1708209032151,-15935.49951446,0.00025142,2]
[314345610,1708209032159,-3187.09990289,0.00025142,2]
[314345611,1708209032168,-169.725628,0.00026232,2]
[314345612,1708209032177,-513.39850921,0.00027397,2]
[314345613,1708209032186,-185.73375799,0.00027397,2]
[314345614,1708209032195,-496.84283628,0.00027397,2]
[314345616,1708209032204,-155.35392087,0.00027397,2]
[314345618,1708209032213,-500.0,0.00027397,2]
[314345620,1708209032222,-500.0,0.00027397,2]
[314345622,1708209032231,-500.0,0.00027397,2]
[314345624,1708209032240,-500.0,0.00027397,2]
[314345626,1708209032248,-500.0,0.00027397,2]
[314345628,1708209032258,-500.0,0.00027397,2]
[314345630,1708209032266,-500.0,0.00027397,2]
[314345632,1708209032276,-500.0,0.00027397,2]
[314345634,1708209032285,-685.9,0.00027397,2]
[314345636,1708209032294,-500.0,0.00027397,2]
[314345638,1708209032303,-500.0,0.00027397,2]
[314345640,1708209032312,-689.26,0.00027397,2]
[314345642,1708209032321,-500.0,0.00027397,2]
[314345645,1708209032330,-500.0,0.00027397,2]
[314345647,1708209032339,-500.0,0.00027397,2]
[314345649,1708209032349,-500.0,0.00027397,2]
[314345650,1708209032358,-500.0,0.00027397,2]
[314345653,1708209032367,-562.38075067,0.00027397,2]
[314345655,1708209032376,-500.0,0.00027397,2]
[314345657,1708209032385,-504.67487428,0.00027397,2]
[314345659,1708209032395,-500.0,0.00027397,2]
[314345661,1708209032404,-534.99074956,0.00027397,2]
[314345663,1708209032412,-500.0,0.00027397,2]
[314345665,1708209032421,-507.03918604,0.00027397,2]
[314345667,1708209032430,-270.22,0.00027397,2]
[314345669,1708209032439,-500.0,0.00027397,2]
[314345671,1708209032448,-500.0,0.00027397,2]
[314345673,1708209032457,-4138.22,0.00027397,2]
[314345675,1708209032466,-500.0,0.00027397,2]
[314345677,1708209032477,-500.0,0.00027397,2]
[314345679,1708209032486,-500.0,0.00027397,2]
[314345681,1708209032496,-927.38,0.00027397,2]
[314345683,1708209032505,-500.0,0.00027397,2]
[314345684,1708209032514,-500.0,0.00027397,2]
[314345687,1708209032523,-486.24233895,0.00027397,2]
[314345689,1708209032533,-500.0,0.00027397,2]
[314345690,1708209032542,-500.0,0.00027397,2]
[314345693,1708209032552,-500.0,0.00027397,2]
[314345695,1708209032561,-500.0,0.00027397,2]
[314345697,1708209032570,-500.0,0.00027397,2]
[314345698,1708209032579,-500.0,0.00027397,2]
[314345701,1708209032589,-500.0,0.00027397,2]
[314345703,1708209032598,-500.0,0.00027397,2]
[314345705,1708209032607,-3858.78,0.00027397,2]
[314345707,1708209032616,-1021.07,0.00027397,2]
[314345709,1708209032625,-2869.69,0.00027397,2]
[314345710,1708209032634,-2780.42,0.00027397,2]
[314345712,1708209032643,-2649.89,0.00027397,2]
[314345714,1708209032653,-540.63992941,0.00027397,2]
[314345715,1708209032663,-500.0,0.00027397,2]
[314345716,1708209032672,-748.83,0.00027397,2]
[314345717,1708209032682,-4891.24,0.00027397,2]
[314345718,1708209032691,-500.0,0.00027397,2]
[314345719,1708209032700,-500.0,0.00027397,2]
[314345720,1708209032709,-501.51354866,0.00027397,2]
[314345721,1708209032717,-498.84175464,0.00027397,2]
[314345732,1708209038131,-1.15824536,0.00027397,2]
[314345733,1708209038141,-806.99,0.00027397,2]
[314345734,1708209038150,-546.42,0.00027397,2]
[314345735,1708209038160,-505.9151369,0.00027397,2]
[314345736,1708209038169,-500.0,0.00027397,2]
[314345737,1708209038179,-506.99496205,0.00027397,2]
[314345738,1708209038188,-500.0,0.00027397,2]
[314345739,1708209038197,-500.0,0.00027397,2]
[314345740,1708209038207,-500.0,0.00027397,2]
[314345741,1708209038216,-500.0,0.00027397,2]
[314345742,1708209038226,-560.66,0.00027397,2]
[314345743,1708209038235,-500.0,0.00027397,2]
[314345744,1708209038244,-505.65007809,0.00027397,2]
[314345745,1708209038253,-504.32224582,0.00027397,2]
[314345746,1708209038262,-500.0,0.00027397,2]
[314345747,1708209038271,-500.0,0.00027397,2]
[314345748,1708209038280,-525.27731322,0.00027397,2]
[314345749,1708209038289,-155.0,0.00027397,2]
[314345750,1708209038298,-500.0,0.00027397,2]
[314345751,1708209038307,-409.31389661,0.00027397,2]
[314345752,1708209038316,-500.0,0.00027397,2]
[314345753,1708209038325,-500.0,0.00027397,2]
[314345754,1708209038334,-2861.17,0.00027397,2]
[314345755,1708209038342,-513.90277996,0.00027397,2]
[314345756,1708209038352,-500.0,0.00027397,2]
[314345757,1708209038361,-500.0,0.00027534,2]
[314345758,1708209038370,-711.93,0.00027661,3]
[314345759,1708209038379,-500.0,0.0002767,2]
[314345760,1708209038388,-500.0,0.0002767,2]
[314345761,1708209038397,-500.0,0.0002767,2]
[314345762,1708209038406,-500.0,0.0002767,2]
[314345763,1708209038415,-507.35627239,0.0002767,2]
[314345764,1708209038424,-500.0,0.0002767,2]
[314345765,1708209038434,-500.0,0.0002767,2]
[314345766,1708209038443,-500.0,0.0002767,2]
[314345767,1708209038452,-500.0,0.0002767,2]
[314345768,1708209038462,-500.0,0.0002767,2]
[314345769,1708209038473,-500.0,0.0002767,2]
[314345770,1708209038482,-500.0,0.0002767,2]
[314345771,1708209038490,-500.0,0.0002767,2]
[314345772,1708209038499,-500.0,0.0002767,2]
[314345773,1708209038509,-1000.0,0.0002767,2]
[314345774,1708209038518,-159.3469226,0.0002767,2]
[314345775,1708209038527,-502.88903493,0.0002767,2]
[314345776,1708209038536,-150.0,0.0002767,2]
[314345777,1708209038546,-500.0,0.0002767,2]
[314345778,1708209038555,-500.0,0.0002767,2]
[314345779,1708209038565,-503.608474,0.0002767,2]
[314345780,1708209038574,-504.0168972,0.0002767,2]
[314345781,1708209038583,-862.31,0.0002767,2]
[314345782,1708209038592,-504.07309495,0.0002767,2]
[314345783,1708209038601,-509.33952143,0.0002767,2]
[314345784,1708209038610,-500.0,0.0002767,2]
[314345785,1708209038619,-500.0,0.0002767,2]
[314345786,1708209038628,-500.0,0.0002767,2]
[314345787,1708209038636,-500.0,0.0002767,2]
[314345788,1708209038645,-500.0,0.0002767,2]
[314345789,1708209038654,-500.0,0.0002767,2]
[314345790,1708209038663,-500.0,0.0002767,2]
[314345791,1708209038672,-500.0,0.0002767,2]
[314345792,1708209038681,-500.0,0.0002767,2]
[314345793,1708209038690,-649.98,0.0002767,2]
[314345794,1708209038699,-500.0,0.0002767,2]
[314345795,1708209038709,-500.0,0.0002767,2]
[314345796,1708209038718,-500.0,0.0002767,2]
[314345797,1708209038736,-500.0,0.0002767,2]
[314345798,1708209038748,-500.0,0.0002767,2]
[314345799,1708209038757,-500.0,0.0002767,2]
[314345800,1708209038767,-515.02886882,0.0002767,2]
[314345801,1708209038776,-500.0,0.0002767,2]
[314345802,1708209038914,-500.0,0.00027671,2]
[314345803,1708209038923,-500.0,0.00027671,2]
[314345804,1708209038933,-233.06320751,0.00027671,2]
[314345805,1708209038942,-167.23199005,0.00027671,2]
[314345806,1708209038951,-500.0,0.00027671,2]
[314345807,1708209038960,-685.9,0.00027671,2]
[314345808,1708209038969,-500.0,0.00027671,2]
[314345809,1708209038979,-500.0,0.00027671,2]
[314345810,1708209038988,-689.26,0.00027671,2]
[314345811,1708209038998,-500.0,0.00027671,2]
[314345812,1708209039007,-500.0,0.00027671,2]
[314345813,1708209039016,-500.0,0.00027671,2]
[314345814,1708209039025,-500.0,0.00027671,2]
[314345815,1708209039035,-500.0,0.00027671,2]
[314345816,1708209039044,-505.20829705,0.00027671,2]
[314345817,1708209039053,-500.0,0.00027671,2]
[314345818,1708209039062,-500.0,0.00027671,2]
[314345819,1708209039071,-500.0,0.00027671,2]
[314345820,1708209039080,-4138.22,0.00027671,2]
[314345821,1708209039089,-500.0,0.00027671,2]
[314345822,1708209039098,-927.38,0.00027671,2]
[314345823,1708209039107,-500.0,0.00027671,2]
[314345824,1708209039116,-500.0,0.00027671,2]
[314345825,1708209039125,-500.0,0.00027671,2]
[314345826,1708209039134,-500.0,0.00027671,2]
[314345827,1708209039143,-472.3,0.00027671,2]
[314345828,1708209039153,-500.0,0.00027671,2]
[314345829,1708209039161,-500.0,0.00027671,2]
[314345830,1708209039171,-3858.78,0.00027671,2]
[314345831,1708209039180,-1021.07,0.00027671,2]
[314345832,1708209039190,-2869.69,0.00027671,2]
[314345833,1708209039199,-2780.42,0.00027671,2]
[314345834,1708209039208,-2649.89,0.00027671,2]
[314345835,1708209039217,-500.0,0.00027671,2]
[314345836,1708209039226,-748.83,0.00027671,2]
[314345837,1708209039237,-500.0,0.00027671,2]
[314345838,1708209039247,-4891.24,0.00027671,2]
[314345839,1708209039256,-500.0,0.00027671,2]
[314345840,1708209039266,-500.0,0.00027671,2]
[314345841,1708209039274,-806.99,0.00027671,2]
[314345842,1708209039283,-500.0,0.00027671,2]
[314345843,1708209039293,-500.0,0.00027671,2]
[314345844,1708209039303,-500.0,0.00027671,2]
[314345845,1708209039312,-500.0,0.00027671,2]
[314345846,1708209039322,-500.0,0.00027671,2]
[314345847,1708209039331,-560.66,0.00027671,2]
[314345848,1708209039340,-500.0,0.00027671,2]
[314345849,1708209039350,-221.45173241,0.00027671,2]
[314345850,1708209039359,-500.0,0.00027671,2]
[314345851,1708209039368,-500.0,0.00027671,2]
[314345852,1708209039378,-500.0,0.00027671,2]
[314345853,1708209039387,-500.0,0.00027671,2]
[314345854,1708209039397,-2861.17,0.00027671,2]
[314345855,1708209039407,-500.0,0.00027671,2]
[314345856,1708209039416,-29680.33152701,0.00027757,5]
[314345857,1708209039425,-500.0,0.00027944,2]
[314345858,1708209039436,-506.06743355,0.00027944,2]
[314345859,1708209039446,-500.0,0.00027944,2]
[314345860,1708209039454,-219.0763038,0.00027944,2]
[314345861,1708209039465,-500.0,0.00027944,2]
[314345862,1708209039478,-500.0,0.00027944,2]
[314345863,1708209039488,-1000.0,0.00027944,2]
[314345864,1708209039497,-150.0,0.00027944,2]
[314345865,1708209039506,-500.0,0.00027944,2]
[314345866,1708209039517,-862.31,0.00027944,2]
[314345867,1708209039526,-500.0,0.00027944,2]
[314345868,1708209039536,-500.0,0.00027944,2]
[314345869,1708209039546,-500.0,0.00027944,2]
[314345870,1708209039555,-500.0,0.00027944,2]
[314345871,1708209039565,-500.0,0.00027944,2]
[314345872,1708209039574,-500.0,0.00027944,2]
[314345873,1708209039584,-500.0,0.00027944,2]
[314345874,1708209039593,-505.27612881,0.00027944,2]
[314345875,1708209039603,-500.0,0.00027944,2]
[314345876,1708209039612,-500.0,0.00027944,2]
[314345877,1708209039622,-500.0,0.00027945,2]
[314345878,1708209039631,-685.9,0.00027945,2]
[314345879,1708209039641,-198.19669351,0.00027945,2]
[314345880,1708209039651,-689.26,0.00027945,2]